fUST/lending_fUST_20260412
["ID","MTS","AMOUNT","RATE_DAILY","PERIOD"]
[420323523,1775965833615,-162.66,0.00016223,3]
[420323524,1775965833630,-488.03,0.00016223,3]
[420323525,1775965833645,-500.0,0.00016231,2]
[420323526,1775965833673,-169.13650246,0.00016231,2]
[420323527,1775965833682,-500.0,0.00016231,2]
[420323528,1775965833700,-500.0,0.00016231,2]
[420323529,1775965833710,-159.2526699,0.00016231,2]
[420323530,1775965833732,-600.0,0.00016231,2]
[420323531,1775965833742,-500.0,0.00016231,2]
[420323532,1775965833765,-500.0,0.00016231,2]
[420323533,1775965833775,-500.0,0.00016231,2]
[420323534,1775965833795,-500.0,0.00016231,2]
[420323535,1775965833804,-500.0,0.00016231,2]
[420323536,1775965833815,-39.11725454,0.00016231,2]
[420323565,1775965843746,-256.2,0.00015299,2]
[420323566,1775965844007,-184.8,0.00015299,2]
[420323567,1775965844021,-734.55557371,0.00016069,2]
[420323568,1775965844036,-335.56,0.00016225,3]
[420323569,1775965844045,-620.0,0.00016231,2]
[420323570,1775965844055,-331.0,0.00016231,2]
[420323571,1775965844074,-231.0,0.00016231,2]
[420323572,1775965844084,-202.08442629,0.00016231,2]
[420323573,1775965844098,-258.79831917,0.00016231,2]
[420323574,1775965844124,-500.0,0.00016231,2]
[420323575,1775965844134,-481.20168083,0.00016231,2]
[420323577,1775965847010,-990.0,0.00016231,2]
[420323578,1775965847019,-595.0,0.00016231,2]
[420323579,1775965847040,-18.79831917,0.00016231,2]
[420323580,1775965847054,-500.0,0.00016231,2]
[420323581,1775965847064,-500.0,0.00016231,2]
[420323582,1775965847082,-500.0,0.00016231,2]
[420323583,1775965847097,-500.0,0.00016231,2]
[420323584,1775965847111,-500.0,0.00016231,2]
[420323585,1775965847136,-500.0,0.00016231,2]
[420323587,1775965847146,-500.0,0.00016231,2]
[420323589,1775965847158,-342.39904145,0.00016231,2]
[420323605,1775966983984,-525.0,7.446e-05,2]
[420323606,1775966984012,-783.63510212,7.447e-05,2]
[420323662,1775967032737,-2393.81392318,7.373e-05,2]
[420323727,1775967038941,-2606.18607682,7.373e-05,2]
[420323728,1775967038951,-260.30687773,7.373e-05,2]
[420323729,1775967038980,-263.69312227,7.373e-05,2]
[420323730,1775967038989,-200.0,7.522e-05,2]
[420323731,1775967039000,-300.0,7.522e-05,2]
[420323732,1775967039014,-300.0,7.522e-05,2]
[420323733,1775967039033,-300.0,7.522e-05,2]
[420323734,1775967039042,-300.0,7.522e-05,2]
[420323735,1775967039056,-1200.0,7.522e-05,2]
[420323736,1775967039066,-832.76206085,7.6e-05,2]
[420323737,1775967039075,-420.0,8.274e-05,2]
[420323738,1775967039088,-420.0,8.274e-05,2]
[420323739,1775967039098,-1680.0,8.274e-05,2]
[420323740,1775967039110,-420.0,8.274e-05,2]
[420323741,1775967039127,-587.0,9.102e-05,2]
[420323742,1775967039136,-587.0,9.102e-05,2]
[420323743,1775967039148,-1599.0,9.102e-05,2]
[420323744,1775967039166,-587.0,9.102e-05,2]
[420323745,1775967039184,-200.0,9.339e-05,2]
[420323746,1775967039194,-200.0,9.339e-05,7]
[420323747,1775967039217,-200.0,9.339e-05,7]
[420323748,1775967039226,-200.0,9.339e-05,30]
[420323749,1775967039248,-184.34230244,9.447e-05,2]
[420323751,1775967039258,-319.33011217,0.0001,2]
[420323753,1775967039281,-4844.10606889,0.0001,10]
[420323754,1775967039291,-313.0,0.00010012,2]
[420323756,1775967039301,-212.46231468,0.00011447,2]
[420323758,1775967039319,-209.64680095,0.00012323,2]
[420323760,1775967039328,-240.58232691,0.00013447,2]
[420323761,1775967039345,-1000.0,0.00013699,2]
[420323762,1775967039362,-160.0,0.00013864,2]
[420323763,1775967039374,-678.02,0.00014916,2]
[420323764,1775967039403,-192.9866009,0.00015068,2]
[420323765,1775967039417,-674.64118904,0.00015083,2]
[420323766,1775967039443,-984.40461515,0.00015199,2]
[420323767,1775967039457,-3790.1557646,0.00015205,2]
[420323768,1775967039477,-421.3397027,0.00015224,2]
[420323769,1775967039489,-510.28,0.00015224,2]
[420323770,1775967039505,-160.0,0.00015247,2]
[420323771,1775967039521,-779.031,0.00015299,2]
[420323772,1775967039533,-268.70233915,0.00015447,2]
[420323773,1775967039548,-2384.300657,0.00015493,2]
[420323774,1775967039563,-570.0,0.00015872,2]
[420323775,1775967039576,-315.0351971,0.00015876,2]
[420323776,1775967039586,-1258.8806476,0.00015876,2]
[420323777,1775967039595,-162.66,0.00015885,3]
[420323781,1775967039797,-488.0,0.00015885,3]
[420323782,1775967039810,-500.0,0.00015894,2]
[420323783,1775967039820,-534.01865627,0.00015894,2]
[420323784,1775967039839,-500.0,0.00015894,2]
[420323785,1775967039859,-500.85026052,0.00015894,2]
[420323787,1775967039868,-500.0,0.00015894,2]
[420323789,1775967039895,-500.0,0.00015894,2]
[420323791,1775967039912,-500.0,0.00015894,2]
[420323792,1775967039922,-500.0,0.00015894,2]
[420323794,1775967039943,-500.0,0.00015894,2]
[420323796,1775967039957,-1164.0388939,0.00015895,2]
[420323797,1775967039967,-1164.0388939,0.00015895,2]
[420323798,1775967039976,-1164.0388939,0.00015895,2]
[420323800,1775967039986,-546.95803447,0.00015895,2]
[420323801,1775967039999,-546.95803446,0.00015895,2]
[420323802,1775967040009,-500.0,0.00015896,2]
[420323803,1775967040018,-41006.14195754,0.00015897,2]
[420323804,1775967040029,-4702.43506679,0.00015897,2]
[420323805,1775967040041,-13519.48270679,0.00016,2]
[420323806,1775967040092,-3416.98829763,0.00016,2]
[420323808,1775967040105,-263.33695241,0.00016081,2]
[420323810,1775967040190,-5212.40507519,0.00016081,2]
[420323811,1775967040200,-237.3956652,0.00016081,2]
[420323812,1775967040211,-9541.8773693,0.00016081,2]
[420323813,1775967040229,-509.75,0.00016131,2]
[420323814,1775967040249,-509.75,0.00016131,2]
[420323815,1775967040259,-390.73931906,0.00016131,2]
[420323816,1775967040279,-119.01068094,0.00016131,2]
[420323817,1775967040289,-509.75,0.00016131,2]
[420323818,1775967040303,-243.30297085,0.00016131,2]
[420323819,1775967040982,-522.0,0.00015876,2]
[420323820,1775967041006,-500.0,0.00015894,2]
[420323821,1775967041020,-153.66510949,0.00015894,2]
[420323822,1775967041056,-346.33489051,0.00015894,2]
[420323823,1775967041065,-49.94411658,0.00015894,2]
[420323824,1775967041102,-189.7727291,0.00015894,2]
[420323825,1775967041116,-266.44702915,0.00016131,2]
[420323826,1775967041134,-509.75,0.00016131,2]
[420323827,1775967041143,-236.25681247,0.00016131,2]
[420323859,1775967046142,-410.44318753,0.00016131,2]
[420323860,1775967046152,-524.0,0.00016131,2]
[420323862,1775967046191,-984.40461511,0.00016145,2]
[420323863,1775967046213,-2384.300657,0.00016145,2]
[420323865,1775967046223,-500.0,0.0001617,2]
[420323866,1775967046244,-537.6845,0.00016189,2]
[420323868,1775967046272,-711.74722555,0.00016189,2]
[420323895,1775968232212,-467.52642622,9.415e-05,2]
[420323897,1775968232237,-1531.71028917,9.415e-05,2]
[420323900,1775968232246,-331.84439566,9.415e-05,2]
[420323904,1775968232259,-220.15560434,9.415e-05,2]
[420323906,1775968232281,-569.98285952,0.0001,2]
[420323910,1775968232291,-177.0,0.00011755,2]
[420323912,1775968232320,-153.44787522,0.00012,2]
[420323916,1775968232332,-300.0,0.00013697,2]
[420323918,1775968232348,-811.0,0.00013697,2]
[420323919,1775968232365,-322.40006139,0.00013698,2]
[420323971,1775968238483,-177.59993861,0.00013698,2]
[420323972,1775968238512,-524.97099475,0.00013698,2]
[420323973,1775968238573,-571.02900525,0.00013698,2]
[420323974,1775968238596,-1000.0,0.00013699,2]
[420323975,1775968238630,-250.139845,0.00013699,2]
[420323976,1775968238640,-297.4981965,0.00013699,2]
[420323977,1775968238661,-702.5018035,0.00013699,2]
[420323978,1775968238672,-204.0,0.00013755,2]
[420323979,1775968238681,-500.0,0.00014,2]
[420323980,1775968238692,-300.0,0.00014237,2]
[420323981,1775968238705,-1433.47638109,0.00014495,2]
[420323982,1775968238734,-232.97658831,0.00014495,2]
[420323983,1775968238744,-250.139845,0.00014658,2]
[420323984,1775968238753,-483.54775487,0.00014833,2]
[420323985,1775968238767,-1932.25682847,0.00014833,2]
[420323986,1775968238778,-160.0,0.00014997,2]
[420323987,1775968238787,-500.0,0.00015,2]
[420323988,1775968238798,-160.0,0.00015,2]
[420323989,1775968238810,-1407.0,0.00015203,2]
[420323990,1775968238833,-649.77,0.00015224,2]
[420323991,1775968238842,-885.14906536,0.00015591,2]
[420323992,1775968238862,-1113.80755716,0.00015591,2]
[420323993,1775968238872,-537.6845,0.00015671,2]
[420323994,1775968238880,-1957.856,0.00015671,2]
[420323995,1775968238892,-2150.738,0.00015671,2]
[420323996,1775968238907,-325.32,0.0001568,3]
[420323997,1775968238926,-162.380719,0.00015683,2]
[420323998,1775968238934,-537.6845,0.00015683,2]
[420323999,1775968238951,-373.81305939,0.00015689,2]
[420324000,1775968238964,-500.0,0.00015689,2]
[420324001,1775968238972,-983.80765978,0.00015689,2]
[420324002,1775968238980,-983.80765978,0.00015689,2]
[420324003,1775968239001,-155.29520206,0.00015689,2]
[420324004,1775968239029,-983.80765978,0.00015689,2]
[420324005,1775968239043,-500.0,0.00015689,2]
[420324006,1775968239067,-983.80765978,0.00015689,2]
[420324007,1775968239083,-983.80765978,0.00015689,2]
[420324008,1775968239102,-500.0,0.00015689,2]
[420324009,1775968239114,-983.80765978,0.00015689,2]
[420324010,1775968239132,-983.80765978,0.00015689,2]
[420324011,1775968239149,-983.80765978,0.00015689,2]
[420324012,1775968239178,-500.0,0.00015689,2]
[420324013,1775968239193,-500.0,0.00015689,2]
[420324014,1775968239218,-500.0,0.00015689,2]
[420324015,1775968239232,-983.80765978,0.00015689,2]
[420324016,1775968239253,-983.80765978,0.00015689,2]
[420324017,1775968239268,-500.0,0.00015689,2]
[420324018,1775968239281,-983.80765978,0.00015689,2]
[420324019,1775968239302,-983.80765978,0.00015689,2]
[420324020,1775968239323,-983.80765978,0.00015689,2]
[420324021,1775968239335,-655.31462512,0.00015689,2]
[420324022,1775968239356,-170.49482856,0.00015689,2]
[420324023,1775968239366,-500.0,0.00015689,2]
[420324024,1775968239388,-825.80945368,0.00015689,2]
[420324025,1775968239402,-500.0,0.00015689,2]
[420324026,1775968239424,-825.80945368,0.00015689,2]
[420324027,1775968239436,-500.0,0.00015689,2]
[420324028,1775968239453,-500.0,0.00015689,2]
[420324029,1775968239473,-825.80945368,0.00015689,2]
[420324030,1775968239485,-500.0,0.00015689,2]
[420324031,1775968239497,-95.20975626,0.00015689,2]
[420324050,1775968243420,-26.70683882,0.00015203,2]
[420324079,1775968246382,-2179.29316118,0.00015203,2]
[420324080,1775968246399,-730.59969742,0.00015689,2]
[420324081,1775968246418,-500.0,0.00015689,2]
[420324082,1775968246430,-825.80945368,0.00015689,2]
[420324083,1775968246446,-500.0,0.00015689,2]
[420324084,1775968246460,-360.87132,0.00015689,2]
[420324105,1775969434687,-557.0,9.799e-05,2]
[420324107,1775969434697,-177.0,0.00011799,2]
[420324109,1775969434731,-164.97952688,0.00013535,2]
[420324111,1775969434742,-1000.0,0.00013699,2]
[420324112,1775969434767,-204.0,0.00013799,2]
[420324113,1775969434780,-722.96703814,0.00013833,2]
[420324114,1775969434798,-300.0,0.0001456,2]
[420324115,1775969434819,-1200.0,0.0001456,2]
[420324116,1775969434832,-308.32006478,0.00014561,2]
[420324117,1775969434842,-517.89225645,0.00014561,2]
[420324118,1775969434862,-369.22904235,0.00014561,2]
[420324119,1775969434894,-399.53935775,0.00014561,2]
[420324120,1775969434907,-664.5,0.00014561,2]
[420324121,1775969434937,-638.30062568,0.00014561,2]
[420324122,1775969434947,-20.01137432,0.00014561,2]
[420324123,1775969434963,-664.02,0.00014561,2]
[420324124,1775969434981,-715.65,0.00014561,2]
[420324164,1775969438665,-764.52505576,0.00014561,2]
[420324241,1775969446559,-2492.16284762,0.00014561,2]
[420324244,1775969446588,-300.0,0.00014664,2]
[420324246,1775969446623,-7656.3680795,0.00014665,2]
[420324248,1775969446635,-160.0,0.00014946,2]
[420324250,1775969446658,-291.771906,0.00014949,2]
[420324252,1775969446674,-1357.1250466,0.00015,2]
[420324255,1775969446688,-702.429,0.00015118,2]
[420324257,1775969446708,-1407.0,0.00015118,2]
[420324259,1775969446745,-4852.54914871,0.00015205,2]
[420324264,1775969446806,-3831.75509417,0.00015205,2]
[420324438,1775970633043,-246.36417719,0.0001,2]
[420324439,1775970633062,-434.74100504,0.0001,2]
[420324440,1775970633087,-560.0,0.0001,2]
[420324441,1775970633098,-262.38093694,0.000103,2]
[420324442,1775970633125,-428.23831174,0.00010618,2]
[420324443,1775970633146,-393.57140542,0.00011,2]
[420324444,1775970633156,-177.0,0.0001215,2]
[420324445,1775970633174,-253.25801475,0.00012484,2]
[420324446,1775970633184,-1012.01902693,0.00012484,2]
[420324447,1775970633194,-300.0,0.00013698,2]
[420324448,1775970633213,-1200.0,0.00013698,2]
[420324450,1775970633223,-3694.64149361,0.00013699,2]
[420324452,1775970633233,-1000.0,0.00013699,2]
[420324453,1775970633249,-160.0,0.00013898,2]
[420324454,1775970633267,-204.0,0.0001415,2]
[420324455,1775970633279,-185.39812882,0.00014345,2]
[420324456,1775970633290,-1589.533771,0.00014745,2]
[420324457,1775970633302,-504.48547121,0.00014948,2]
[420324458,1775970633316,-1782.77358239,0.00014961,2]
[420324470,1775970638867,-1453.59048211,0.00014961,2]
[420324471,1775970638878,-4500.0121537,0.00014961,2]
[420324472,1775970638888,-1735.14913454,0.00014961,2]
[420324477,1775970641520,-2024.76708886,0.00014961,2]
[420324478,1775970641531,-254.79876945,0.00015,2]
[420324479,1775970641543,-420.0,0.00015011,2]
[420324480,1775970641554,-694.0,0.00015068,2]
[420324481,1775970641564,-205.172325,0.00015068,2]
[420324482,1775970641574,-160.0,0.00015082,2]
[420324483,1775970641589,-293.90440665,0.00015118,2]
[420324484,1775970641625,-1109.82875241,0.00015118,2]
[420324498,1775970643652,-802.26684094,0.00015118,2]
[420324499,1775970643662,-1407.0,0.00015118,2]
[420324500,1775970643674,-944.67170351,0.000152,120]
[420324501,1775970643691,-1315.69575712,0.00015205,2]
[420324502,1775970643700,-701.0,0.00015281,2]
[420324503,1775970643711,-447.758,0.00015286,2]
[420324504,1775970643734,-188.77666661,0.00015286,2]
[420324505,1775970643744,-500.0,0.00015326,2]
[420324506,1775970643755,-114.02409138,0.00015365,2]
[420324507,1775970643773,-1475.50967962,0.00015365,2]
[420324508,1775970643782,-500.0,0.00015392,2]
[420324509,1775970643790,-500.0,0.00015392,2]
[420324510,1775970643799,-500.0,0.00015392,2]
[420324511,1775970643819,-500.0,0.00015392,2]
[420324512,1775970643827,-500.0,0.00015392,2]
[420324513,1775970643836,-500.0,0.00015392,2]
[420324514,1775970643853,-420.42522038,0.00015392,2]
[420324526,1775970646877,-441.0,0.00015047,2]
[420324527,1775970646888,-79.57477962,0.00015392,2]
[420324528,1775970646914,-20.34893203,0.00015392,2]
[420324529,1775970646930,-479.65106797,0.00015392,2]
[420324530,1775970646941,-200.0,0.00015392,2]
[420324531,1775970646954,-24579.0,0.00015393,2]
[420324532,1775970646967,-261.66914157,0.00015424,2]
[420324533,1775970646979,-500.0,0.00015424,2]
[420324534,1775970646988,-500.0,0.00015424,2]
[420324535,1775970647003,-500.0,0.00015424,2]
[420324536,1775970647021,-558.70664144,0.00015424,2]
[420324537,1775970647046,-500.0,0.00015424,2]
[420324538,1775970647057,-500.0,0.00015424,2]
[420324539,1775970647072,-500.0,0.00015424,2]
[420324540,1775970647087,-500.0,0.00015424,2]
[420324541,1775970647098,-500.0,0.00015424,2]
[420324542,1775970647118,-500.0,0.00015424,2]
[420324543,1775970647135,-500.0,0.00015424,2]
[420324544,1775970647146,-500.0,0.00015424,2]
[420324545,1775970647175,-500.0,0.00015424,2]
[420324546,1775970647187,-500.0,0.00015424,2]
[420324547,1775970647365,-500.0,0.00015424,2]
[420324548,1775970647376,-109.36314714,0.00015424,2]
[420324549,1775970647407,-300.0,0.00015424,2]
[420324550,1775970647422,-90.63685286,0.00015424,2]
[420324551,1775970647436,-500.0,0.00015424,2]
[420324552,1775970647449,-6964.57603405,0.00015425,2]
[420324553,1775970647486,-98333.1229232,0.00015425,2]
[420326688,1775971832555,-1065.0,9.999e-05,2]
[420326689,1775971832578,-560.0,9.999e-05,2]
[420326690,1775971832589,-194.99977778,0.0001,2]
[420326691,1775971832612,-254.19269043,0.0001,2]
[420326692,1775971832628,-150.1919816,0.0001,2]
[420326693,1775971832639,-643.51270839,0.0001,2]
[420326694,1775971832661,-643.51270839,0.00010397,2]
[420326695,1775971832673,-300.0,0.00010792,2]
[420326696,1775971832686,-643.51270839,0.00010793,2]
[420326697,1775971832709,-153.11464639,0.00010822,2]
[420326857,1775971838986,-101.07804404,0.00010822,2]
[420326858,1775971838998,-643.51270839,0.0001119,7]
[420326859,1775971839009,-241.83010356,0.00011587,7]
[420326860,1775971839052,-401.68260483,0.00011587,7]
[420326861,1775971839065,-150.1919816,0.00011643,7]
[420326862,1775971839075,-254.19269043,0.00011643,7]
[420326863,1775971839092,-194.99977778,0.00011868,7]
[420326864,1775971839102,-643.51270839,0.00011983,7]
[420326865,1775971839116,-643.51270839,0.0001238,7]
[420326866,1775971839137,-254.19269043,0.00012465,7]
[420326867,1775971839154,-643.51270839,0.00012777,7]
[420326868,1775971839165,-177.0,0.00012934,2]
[420326869,1775971839186,-643.51270839,0.00013173,7]
[420326870,1775971839202,-150.1919816,0.00013287,7]
[420326871,1775971839216,-254.19269043,0.00013287,7]
[420326872,1775971839244,-231.22888607,0.00013365,14]
[420326873,1775971839267,-643.51270839,0.0001357,14]
[420326874,1775971839280,-1000.0,0.00013699,2]
[420326875,1775971839290,-194.99977778,0.00013736,7]
[420326876,1775971839320,-50.13194425,0.00013967,14]
[420326877,1775971839331,-593.38076414,0.00013967,14]
[420326878,1775971839356,-254.19269043,0.00014109,14]
[420326879,1775971839370,-156.66087688,0.00014159,2]
[420326880,1775971839381,-428.70566855,0.00014159,2]
[420326891,1775971841679,-197.31119546,0.00014159,2]
[420326892,1775971841689,-643.51270839,0.00014364,14]
[420326893,1775971841699,-643.51270839,0.0001476,14]
[420326894,1775971841723,-160.0,0.00014879,2]
[420326895,1775971841732,-150.1919816,0.0001493,14]
[420326896,1775971841748,-254.19269043,0.0001493,14]
[420326897,1775971841778,-204.0,0.00014934,2]
[420326898,1775971841792,-530.58766358,0.0001496,2]
[420326899,1775971841815,-160.0,0.0001504,2]
[420326900,1775971841824,-433.00566923,0.00015094,2]
[420326924,1775971843913,-7.99433077,0.00015094,2]
[420326925,1775971843932,-780.978,0.00015094,2]
[420326926,1775971843955,-184.0,0.00015094,2]
[420326927,1775971843972,-643.51270839,0.00015157,14]
[420326928,1775971843987,-500.0,0.00015184,2]
[420326929,1775971844014,-500.0,0.00015184,2]
[420326930,1775971844056,-500.0,0.00015184,2]
[420326931,1775971844084,-500.0,0.00015184,2]
[420326932,1775971844095,-500.0,0.00015184,2]
[420326933,1775971844120,-500.0,0.00015184,2]
[420326934,1775971844134,-357.29782264,0.00015184,2]
[420326935,1775971844153,-500.0,0.00015184,2]
[420326936,1775971844163,-500.0,0.00015184,2]
[420326937,1775971844173,-500.0,0.00015184,2]
[420326938,1775971844186,-500.0,0.00015184,2]
[420326939,1775971844201,-500.0,0.00015184,2]
[420326940,1775971844211,-500.0,0.00015184,2]
[420326941,1775971844220,-500.0,0.00015184,2]
[420326942,1775971844242,-154.34153074,0.00015184,2]
[420326943,1775971844279,-345.65846926,0.00015184,2]
[420326944,1775971844290,-500.0,0.00015184,2]
[420326945,1775971844301,-500.0,0.00015184,2]
[420326946,1775971844310,-491.09464901,0.00015184,2]
[420326947,1775971844326,-500.0,0.00015184,2]
[420326948,1775971844339,-500.0,0.00015184,2]
[420326949,1775971844348,-500.0,0.00015184,2]
[420326950,1775971844358,-500.0,0.00015184,2]
[420326951,1775971844380,-500.0,0.00015184,2]
[420326952,1775971844389,-8.17077451,0.00015184,2]
[420326953,1775971844429,-491.82922549,0.00015184,2]
[420326954,1775971844439,-500.0,0.00015184,2]
[420326955,1775971844465,-500.0,0.00015184,2]
[420326956,1775971844474,-334.20163853,0.00015184,2]
[420326957,1775971844487,-165.79836147,0.00015184,2]
[420326958,1775971844505,-500.0,0.00015184,2]
[420326959,1775971844515,-191.72451127,0.00015184,2]
[420326960,1775971844526,-308.27548873,0.00015184,2]
[420326961,1775971844549,-119.49852464,0.00015184,2]
[420327025,1775971846945,-380.50147536,0.00015184,2]
[420327026,1775971846967,-500.0,0.00015184,2]
[420327027,1775971846986,-500.0,0.00015184,2]
[420327028,1775971847008,-500.0,0.00015184,2]
[420327029,1775971847028,-500.0,0.00015184,2]
[420327030,1775971847042,-500.0,0.00015184,2]
[420327031,1775971847075,-500.0,0.00015184,2]
[420327032,1775971847096,-500.0,0.00015184,2]
[420327033,1775971847111,-500.0,0.00015184,2]
[420327034,1775971847128,-500.0,0.00015184,2]
[420327035,1775971847138,-373.34798663,0.00015184,2]
[420327036,1775971847151,-500.0,0.00015184,2]
[420327037,1775971847161,-500.0,0.00015184,2]
[420327039,1775971847177,-500.0,0.00015184,2]
[420327040,1775971847188,-500.0,0.00015184,2]
[420327041,1775971847199,-500.0,0.00015184,2]
[420327042,1775971847211,-183.1683991,0.00015184,2]
[420327043,1775971847226,-500.0,0.00015184,2]
[420327044,1775971847237,-500.0,0.00015184,2]
[420327045,1775971847247,-500.0,0.00015184,2]
[420327046,1775971847267,-500.0,0.00015184,2]
[420327047,1775971847276,-500.0,0.00015184,2]
[420327048,1775971847285,-500.0,0.00015184,2]
[420327049,1775971847299,-500.0,0.00015184,2]
[420327050,1775971847317,-500.0,0.00015184,2]
[420327051,1775971847327,-500.0,0.00015184,2]
[420327052,1775971847338,-500.0,0.00015184,2]
[420327053,1775971847355,-500.0,0.00015184,2]
[420327054,1775971847364,-500.0,0.00015184,2]
[420327055,1775971847373,-500.0,0.00015184,2]
[420327056,1775971847392,-500.0,0.00015184,2]
[420327057,1775971847405,-500.0,0.00015184,2]
[420327058,1775971847416,-500.0,0.00015184,2]
[420327059,1775971847431,-500.0,0.00015184,2]
[420327060,1775971847446,-500.0,0.00015184,2]
[420327061,1775971847456,-500.0,0.00015184,2]
[420327062,1775971847474,-500.0,0.00015184,2]
[420327063,1775971847485,-624.7440917,0.00015184,2]
[420327064,1775971847498,-500.0,0.00015184,2]
[420327065,1775971847514,-500.0,0.00015184,2]
[420327066,1775971847526,-500.0,0.00015184,2]
[420327067,1775971847539,-500.0,0.00015184,2]
[420327068,1775971847564,-500.0,0.00015184,2]
[420327069,1775971847573,-500.0,0.00015184,2]
[420327070,1775971847591,-500.0,0.00015184,2]
[420327071,1775971847611,-500.0,0.00015184,2]
[420327072,1775971847627,-500.0,0.00015184,2]
[420327073,1775971847639,-218.366719,0.00015186,2]
[420327074,1775971847671,-218.366719,0.00015186,2]
[420327075,1775971847683,-218.366719,0.00015186,2]
[420327076,1775971847702,-218.366719,0.00015186,2]
[420327077,1775971847718,-218.366719,0.00015186,2]
[420327078,1775971847729,-218.366719,0.00015186,2]
[420327079,1775971847749,-218.366719,0.00015186,2]
[420327080,1775971847766,-218.366719,0.00015186,2]
[420327081,1775971847778,-218.366719,0.00015186,2]
[420327082,1775971847796,-218.366719,0.00015186,2]
[420327083,1775971847811,-218.366719,0.00015186,2]
[420327084,1775971847825,-218.366719,0.00015186,2]
[420327085,1775971847840,-500.0,0.00015186,2]
[420327086,1775971847854,-218.366719,0.00015187,2]
[420327087,1775971847867,-218.366719,0.00015187,2]
[420327088,1775971847877,-218.366719,0.00015187,2]
[420327089,1775971847890,-218.366719,0.00015187,2]
[420327090,1775971847904,-38500.71073172,0.00015187,2]
[420327091,1775971847917,-1273.79065891,0.00015187,2]
[420330383,1775973002354,185.58,2e-05,2]
[420330402,1775973032032,-500.82288191,0.00012705,2]
[420330404,1775973032047,-99.17711809,0.00012705,2]
[420330405,1775973032076,-151.4801297,0.00012705,2]
[420330406,1775973032092,-151.4801297,0.00012705,2]
[420330407,1775973032124,-290.74880736,0.00013128,2]
[420330408,1775973032141,-1000.0,0.00013699,2]
[420330409,1775973032172,-474.30795513,0.00013891,2]
[420330410,1775973032208,-6.03922742,0.00013891,2]
[420330411,1775973032223,-1921.3887302,0.00013891,2]
[420330412,1775973032256,-160.0,0.0001396,2]
[420330413,1775973032276,-101.04472149,0.0001413,2]
[420330426,1775973038375,-1095.2828373,0.00013891,2]
[420330652,1775973043108,-3223.51868101,0.00013891,2]
[420330654,1775973043121,-190.72718551,0.0001413,2]
[420330656,1775973043130,-402.79090392,0.00014622,2]
[420330658,1775973043142,-239.66473786,0.00014622,2]
[420330779,1775973046062,-1369.88771422,0.00014622,2]
[420330781,1775973046073,-177.0,0.00014705,2]
[420330783,1775973046085,-500.0,0.00014782,2]
[420330784,1775973046103,-500.0,0.00014782,2]
[420330786,1775973046112,-500.0,0.00014782,2]
[420330789,1775973046125,-500.0,0.00014782,2]
[420330791,1775973046143,-500.0,0.00014782,2]
[420330793,1775973046154,-500.0,0.00014782,2]
[420330795,1775973046166,-500.0,0.00014782,2]
[420330796,1775973046175,-500.0,0.00014782,2]
[420330798,1775973046191,-613.26840627,0.00014782,2]
[420330800,1775973046204,-902.99533569,0.00014782,2]
[420330802,1775973046213,-296.87580772,0.00014782,2]
[420330804,1775973046226,-500.0,0.00014782,2]
[420330806,1775973046236,-500.0,0.00014782,2]
[420330808,1775973046248,-293.15322234,0.00014782,2]
[420330811,1775973046267,-206.84677766,0.00014782,2]
[420330813,1775973046278,-500.0,0.00014782,2]
[420330815,1775973046291,-500.0,0.00014782,2]
[420330817,1775973046300,-500.0,0.00014782,2]
[420330818,1775973046311,-500.0,0.00014782,2]
[420330821,1775973046322,-500.0,0.00014782,2]
[420330822,1775973046333,-500.0,0.00014782,2]